fUST/lending_fUST_20240824
["ID","MTS","AMOUNT","RATE_DAILY","PERIOD"]
[335722951,1724463062804,-225.040231,0.00013972,2]
[335722952,1724463062814,-779.44,0.00013972,2]
[335722953,1724463062824,-621.89,0.00013972,2]
[335722954,1724463062833,-500.0,0.00013972,2]
[335722955,1724463062843,-792.19,0.00013972,2]
[335722956,1724463062852,-2168.66,0.00013972,2]
[335722957,1724463062861,-376.95887794,0.00013972,2]
[335722958,1724463062871,-4841.43,0.00013972,2]
[335722959,1724463062881,-530.8838996,0.00013972,2]
[335722960,1724463062890,-500.0,0.00013972,2]
[335722961,1724463062900,-500.0,0.00013972,2]
[335722962,1724463062909,-500.0,0.00013972,2]
[335722963,1724463062919,-500.0,0.00013972,2]
[335722964,1724463062928,-500.0,0.00013972,2]
[335722965,1724463062938,-7046.81,0.00013972,2]
[335722966,1724463062947,-1287.905095,0.00013972,2]
[335722967,1724463062956,-1287.905095,0.00013972,2]
[335722968,1724463062965,-500.0,0.00013972,2]
[335722969,1724463062975,-1287.905095,0.00013972,2]
[335722970,1724463062984,-500.0,0.00013972,2]
[335722971,1724463062994,-1287.905095,0.00013972,2]
[335722972,1724463063003,-1287.905095,0.00013972,2]
[335722973,1724463063012,-4803.34,0.00013972,2]
[335722974,1724463063022,-1705.15,0.00013972,2]
[335722975,1724463063031,-2316.36,0.00013972,2]
[335722976,1724463063042,-1782.14,0.00013972,2]
[335722977,1724463063051,-1275.9,0.00013972,2]
[335722978,1724463063061,-1287.905095,0.00013972,2]
[335722979,1724463063071,-500.0,0.00013972,2]
[335722980,1724463063082,-3809.28,0.00013972,2]
[335722981,1724463063091,-1287.905095,0.00013972,2]
[335722982,1724463063101,-1287.905095,0.00013972,2]
[335722983,1724463063110,-296.87412,0.00013972,2]
[335722984,1724463063119,-296.87412,0.00013972,2]
[335722985,1724463063129,-500.0,0.00013972,2]
[335722986,1724463063138,-1287.905095,0.00013972,2]
[335722987,1724463063149,-693.36,0.00013972,2]
[335722988,1724463063159,-1287.905095,0.00013972,2]
[335722989,1724463063168,-2269.59,0.00013972,2]
[335722990,1724463063177,-296.87412,0.00013972,2]
[335722991,1724463063187,-296.87412,0.00013972,2]
[335722992,1724463063196,-296.87412,0.00013972,2]
[335722993,1724463063206,-735.46,0.00013972,2]
[335722994,1724463063215,-296.87412,0.00013972,2]
[335722995,1724463063225,-1040.786388,0.00013972,2]
[335722996,1724463063235,-296.87412,0.00013972,2]
[335722997,1724463063246,-500.0,0.00013972,2]
[335722998,1724463063255,-1040.786388,0.00013972,2]
[335722999,1724463063264,-296.87412,0.00013972,2]
[335723000,1724463063274,-1040.786388,0.00013972,2]
[335723001,1724463063283,-296.87412,0.00013972,2]
[335723002,1724463063295,-1040.786388,0.00013972,2]
[335723003,1724463063304,-296.87412,0.00013972,2]
[335723004,1724463063314,-1040.786388,0.00013972,2]
[335723005,1724463063327,-1040.786388,0.00013972,2]
[335723006,1724463063343,-1040.786388,0.00013972,2]
[335723007,1724463063352,-500.0,0.00013972,2]
[335723008,1724463063361,-1040.786388,0.00013972,2]
[335723009,1724463063371,-500.0,0.00013972,2]
[335723010,1724463063380,-500.0,0.00013972,2]
[335723011,1724463063390,-1555.53,0.00013972,2]
[335723012,1724463063399,-500.0,0.00013972,2]
[335723013,1724463063409,-898.82,0.00013972,2]
[335723014,1724463063419,-500.0,0.00013972,2]
[335723015,1724463063428,-1021.36,0.00013972,2]
[335723016,1724463063437,-500.0,0.00013972,2]
[335723017,1724463063447,-501.13032962,0.00013972,2]
[335723018,1724463063457,-500.0,0.00013972,2]
[335723019,1724463063467,-631.8,0.00013972,2]
[335723020,1724463063478,-500.0,0.00013972,2]
[335723021,1724463063488,-981.08,0.00013972,2]
[335723022,1724463063499,-1457.5163,0.00013972,2]
[335723023,1724463063509,-500.0,0.00013972,2]
[335723024,1724463063519,-1457.5163,0.00013972,2]
[335723025,1724463063529,-1457.5163,0.00013972,2]
[335723026,1724463063539,-1457.5163,0.00013972,2]
[335723027,1724463063549,-1457.5163,0.00013972,2]
[335723028,1724463063559,-12541.52,0.00013972,2]
[335723029,1724463063569,-1008.99,0.00013972,2]
[335723030,1724463063584,-1457.5163,0.00013972,2]
[335723031,1724463063594,-500.0,0.00013972,2]
[335723032,1724463063603,-1457.5163,0.00013972,2]
[335723033,1724463063613,-500.0,0.00013972,2]
[335723034,1724463063623,-1457.5163,0.00013972,2]
[335723035,1724463063633,-3571.72,0.00013972,2]
[335723036,1724463063643,-1457.5163,0.00013972,2]
[335723037,1724463063653,-630.17,0.00013972,2]
[335723038,1724463063664,-1457.5163,0.00013972,2]
[335723039,1724463063674,-806.92,0.00013972,2]
[335723040,1724463063683,-500.0,0.00013972,2]
[335723041,1724463063693,-500.0,0.00013972,2]
[335723042,1724463063703,-500.80362181,0.00013972,2]
[335723043,1724463063713,-824.61,0.00013972,2]
[335723044,1724463063722,-500.0,0.00013972,2]
[335723045,1724463063732,-500.0,0.00013972,2]
[335723046,1724463063742,-200.29199372,0.00013973,2]
[335723047,1724463063763,-500.0,0.00013973,2]
[335723048,1724463063773,-504.70643128,0.00013973,2]
[335723049,1724463063786,-500.0,0.00013973,2]
[335723050,1724463063797,-200.0,0.00013973,2]
[335723051,1724463063807,-500.0,0.00013973,2]
[335723052,1724463063817,-500.30061195,0.00013973,2]
[335723053,1724463063829,-174.55815406,0.00013999,2]
[335723054,1724463063839,-5707.1334542,0.00013999,2]
[335723055,1724463063849,-150.112233,0.00014,2]
[335723056,1724463063859,-150.112233,0.00014,2]
[335723057,1724463063869,-204.01416,0.00014,2]
[335723058,1724463063880,-204.01416,0.00014,2]
[335723059,1724463063892,-151.0,0.00014,2]
[335723060,1724463063902,-154.72922386,0.00014,2]
[335723061,1724463063913,-594.94258773,0.00014,4]
[335723062,1724463063924,-24133.6383299,0.00014,2]
[335723063,1724463063934,-150.112233,0.000141,2]
[335723064,1724463063946,-150.112233,0.000141,2]
[335723065,1724463063956,-4570.88045268,0.00014118,2]
[335723066,1724463063967,-420.0,0.00014123,2]
[335723067,1724463063977,-1732.38352074,0.00014156,2]
[335723068,1724463063987,-150.112233,0.000142,2]
[335723069,1724463063998,-500.85069077,0.00014221,2]
[335723070,1724463064007,-1435.02041196,0.00014245,2]
[335723071,1724463064018,-252.25111915,0.00014245,2]
[335723072,1724463064028,-404.59278011,0.00014245,2]
[335723073,1724463064038,-811.71027722,0.00014245,2]
[335723074,1724463064048,-154.76012181,0.00014245,2]
[335723075,1724463064058,-154.93355387,0.00014245,2]
[335723076,1724463064068,-166.43730029,0.00014245,2]
[335723077,1724463064078,-183.34752571,0.00014245,2]
[335723078,1724463064088,-151.0,0.00014246,2]
[335723079,1724463064098,-151.0,0.00014246,2]
[335723080,1724463064108,-151.0,0.00014246,2]
[335723081,1724463064119,-151.0,0.00014246,2]
[335723082,1724463064128,-151.0,0.00014246,2]
[335723083,1724463064139,-151.0,0.00014246,2]
[335723084,1724463064149,-151.0,0.00014246,2]
[335723085,1724463064159,-279.113832,0.00014246,2]
[335723086,1724463064169,-500.0,0.00014246,2]
[335723087,1724463064180,-500.0,0.00014246,2]
[335723088,1724463064190,-151.0,0.00014246,2]
[335723089,1724463064199,-151.0,0.00014246,2]
[335723090,1724463064209,-151.0,0.00014246,2]
[335723091,1724463064219,-151.0,0.00014246,2]
[335723092,1724463064228,-151.0,0.00014246,2]
[335723093,1724463064238,-151.0,0.00014246,2]
[335723094,1724463064252,-238.514434,0.00014246,2]
[335723095,1724463064262,-151.0,0.00014246,2]
[335723096,1724463064272,-151.0,0.00014246,2]
[335723097,1724463064283,-151.0,0.00014246,2]
[335723098,1724463064294,-151.0,0.00014246,2]
[335723099,1724463064304,-151.0,0.00014246,2]
[335723100,1724463064314,-151.0,0.00014246,2]
[335723101,1724463064325,-151.0,0.00014246,2]
[335723102,1724463064335,-151.0,0.00014246,2]
[335723103,1724463064345,-580.9,0.00014246,2]
[335723104,1724463064354,-204.01416,0.00014246,2]
[335723105,1724463064368,-204.01416,0.00014246,2]
[335723106,1724463064379,-204.01416,0.00014246,2]
[335723107,1724463064389,-204.01416,0.00014246,2]
[335723108,1724463064399,-204.01416,0.00014246,2]
[335723109,1724463064409,-204.01416,0.00014246,2]
[335723110,1724463064419,-204.01416,0.00014246,2]
[335723111,1724463064430,-204.01416,0.00014246,2]
[335723112,1724463064442,-151.0,0.00014246,2]
[335723113,1724463064453,-151.0,0.00014246,2]
[335723114,1724463064464,-151.0,0.00014246,2]
[335723115,1724463064475,-205.949422,0.00014246,2]
[335723116,1724463064485,-1255.62,0.00014246,2]
[335723117,1724463064496,-151.0,0.00014246,2]
[335723118,1724463064506,-151.0,0.00014246,2]
[335723119,1724463064516,-151.0,0.00014246,2]
[335723120,1724463064526,-151.0,0.00014246,2]
[335723121,1724463064536,-151.0,0.00014246,2]
[335723122,1724463064546,-500.0,0.00014246,2]
[335723123,1724463064556,-500.0,0.00014246,2]
[335723124,1724463064566,-151.0,0.00014246,2]
[335723125,1724463064577,-500.0,0.00014246,2]
[335723126,1724463064587,-500.0,0.00014246,2]
[335723127,1724463064597,-500.0,0.00014246,2]
[335723128,1724463064607,-667.39,0.00014246,2]
[335723129,1724463064618,-500.0,0.00014246,2]
[335723130,1724463064629,-500.0,0.00014246,2]
[335723131,1724463064640,-500.0,0.00014246,2]
[335723132,1724463064651,-500.0,0.00014246,2]
[335723133,1724463064662,-500.0,0.00014246,2]
[335723134,1724463064672,-500.0,0.00014246,2]
[335723135,1724463064682,-611.64,0.00014246,2]
[335723136,1724463064692,-500.0,0.00014246,2]
[335723137,1724463064702,-500.0,0.00014246,2]
[335723138,1724463064713,-500.0,0.00014246,2]
[335723139,1724463064724,-868.25,0.00014246,2]
[335723140,1724463064734,-500.0,0.00014246,2]
[335723141,1724463064744,-772.16,0.00014246,2]
[335723142,1724463064754,-500.0,0.00014246,2]
[335723143,1724463064764,-920.08,0.00014246,2]
[335723144,1724463064774,-540.16630061,0.00014246,2]
[335723145,1724463064784,-585.15,0.00014246,2]
[335723146,1724463064794,-500.0,0.00014246,2]
[335723147,1724463064803,-500.0,0.00014246,2]
[335723148,1724463064817,-866.02,0.00014246,2]
[335723149,1724463064829,-500.0,0.00014246,2]
[335723150,1724463064839,-242.80016148,0.00014246,2]
[335723151,1724463064849,-500.0,0.00014246,2]
[335723152,1724463064859,-500.0,0.00014246,2]
[335723153,1724463064869,-500.0,0.00014246,2]
[335723154,1724463064879,-500.0,0.00014246,2]
[335723155,1724463064889,-500.0,0.00014246,2]
[335723156,1724463064899,-500.0,0.00014246,2]
[335723157,1724463064909,-500.0,0.00014246,2]
[335723158,1724463064920,-500.0,0.00014246,2]
[335723159,1724463064930,-1248.42,0.00014246,2]
[335723160,1724463064940,-894.15,0.00014246,2]
[335723161,1724463064951,-500.0,0.00014246,2]
[335723162,1724463064961,-500.0,0.00014246,2]
[335723163,1724463064971,-500.0,0.00014246,2]
[335723164,1724463064982,-500.0,0.00014246,2]
[335723165,1724463064992,-799.29,0.00014246,2]
[335723166,1724463065003,-500.0,0.00014246,2]
[335723167,1724463065013,-500.0,0.00014246,2]
[335723168,1724463065024,-745.15,0.00014246,2]
[335723169,1724463065034,-500.0,0.00014246,2]
[335723170,1724463065045,-500.0,0.00014246,2]
[335723171,1724463065055,-586.15,0.00014246,2]
[335723172,1724463065065,-500.0,0.00014246,2]
[335723173,1724463065075,-2049.64,0.00014246,2]
[335723174,1724463065084,-500.0,0.00014246,2]
[335723175,1724463065094,-500.0,0.00014246,2]
[335723176,1724463065104,-500.0,0.00014246,2]
[335723177,1724463065114,-151.0,0.00014246,2]
[335723178,1724463065124,-255.798068,0.00014246,2]
[335723179,1724463065134,-695.43,0.00014246,2]
[335723180,1724463065143,-669.27,0.00014246,2]
[335723181,1724463065153,-500.0,0.00014246,2]
[335723182,1724463065163,-500.0,0.00014246,2]
[335723183,1724463065173,-500.0,0.00014246,2]
[335723184,1724463065183,-891.21,0.00014246,2]
[335723185,1724463065193,-500.0,0.00014246,2]
[335723186,1724463065203,-382.99968095,0.00014246,2]
[335723187,1724463065215,-500.0,0.00014246,2]
[335723188,1724463065224,-500.0,0.00014246,2]
[335723189,1724463065235,-500.0,0.00014246,2]
[335723190,1724463065249,-500.0,0.00014246,2]
[335723191,1724463065261,-616.5524974,0.00014246,2]
[335723192,1724463065271,-538.93,0.00014246,2]
[335723193,1724463065283,-500.0,0.00014246,2]
[335723194,1724463065293,-500.0,0.00014246,2]
[335723195,1724463065303,-500.0,0.00014246,2]
[335723196,1724463065314,-500.0,0.00014246,2]
[335723197,1724463065327,-543.17,0.00014246,2]
[335723198,1724463065338,-827.31,0.00014246,2]
[335723199,1724463065348,-657.19,0.00014246,2]
[335723200,1724463065359,-500.0,0.00014246,2]
[335723201,1724463065368,-500.0,0.00014246,2]
[335723202,1724463065378,-500.0,0.00014246,2]
[335723203,1724463065388,-500.0,0.00014246,2]
[335723204,1724463065399,-500.0,0.00014246,2]
[335723205,1724463065408,-818.72,0.00014246,2]
[335723206,1724463065418,-500.0,0.00014246,2]
[335723207,1724463065427,-1344.49,0.00014246,2]
[335723208,1724463065437,-500.0,0.00014246,2]
[335723209,1724463065447,-531.31,0.00014246,2]
[335723210,1724463065457,-500.0,0.00014246,2]
[335723211,1724463065468,-500.0,0.00014246,2]
[335723212,1724463065478,-500.0,0.00014246,2]
[335723213,1724463065489,-500.0,0.00014246,2]
[335723214,1724463065498,-500.0,0.00014246,2]
[335723215,1724463065515,-500.0,0.00014246,2]
[335723216,1724463065525,-500.0,0.00014246,2]
[335723217,1724463065535,-500.0,0.00014246,2]
[335723218,1724463065728,-626.71,0.00014246,2]
[335723219,1724463065739,-500.0,0.00014246,2]
[335723220,1724463065748,-500.0,0.00014246,2]
[335723221,1724463065759,-645.75,0.00014246,2]
[335723222,1724463065768,-500.0,0.00014246,2]
[335723223,1724463065778,-500.0,0.00014246,2]
[335723224,1724463065787,-500.0,0.00014246,2]
[335723225,1724463065798,-500.0,0.00014246,2]
[335723226,1724463065809,-500.0,0.00014246,2]
[335723227,1724463065820,-500.0,0.00014246,2]
[335723228,1724463065831,-500.0,0.00014246,2]
[335723229,1724463065840,-391.60995136,0.00014246,2]
[335723230,1724463065850,-500.0,0.00014246,2]
[335723231,1724463065859,-500.0,0.00014246,2]
[335723232,1724463065869,-1272.431646,0.00014246,2]
[335723233,1724463065878,-500.0,0.00014246,2]
[335723234,1724463065887,-1272.431646,0.00014246,2]
[335723235,1724463065897,-1272.431646,0.00014246,2]
[335723236,1724463065907,-1272.431646,0.00014246,2]
[335723237,1724463065916,-1272.431646,0.00014246,2]
[335723238,1724463065926,-1272.431646,0.00014246,2]
[335723239,1724463065936,-1272.431646,0.00014246,2]
[335723240,1724463065946,-1272.431646,0.00014246,2]
[335723241,1724463065956,-500.0,0.00014246,2]
[335723242,1724463065966,-1272.431646,0.00014246,2]
[335723243,1724463065976,-1272.431646,0.00014246,2]
[335723244,1724463065985,-1272.431646,0.00014246,2]
[335723245,1724463065995,-201.6064852,0.00014246,2]
[335723246,1724463066005,-1272.431643,0.00014246,2]
[335723247,1724463066014,-542.46107161,0.00014246,2]
[335723248,1724463066023,-500.0,0.00014246,2]
[335723249,1724463066033,-500.0,0.00014246,2]
[335723250,1724463066044,-500.0,0.00014246,2]
[335723251,1724463066054,-500.0,0.00014246,2]
[335723252,1724463066064,-500.0,0.00014246,2]
[335723253,1724463066074,-500.0,0.00014246,2]
[335723254,1724463066084,-500.0,0.00014246,2]
[335723255,1724463066095,-500.0,0.00014246,2]
[335723256,1724463066105,-500.0,0.00014246,2]
[335723257,1724463066115,-500.0,0.00014246,2]
[335723258,1724463066124,-552.28,0.00014246,2]
[335723259,1724463066134,-500.0,0.00014246,2]
[335723260,1724463066144,-522.57,0.00014246,2]
[335723261,1724463066153,-500.0,0.00014246,2]
[335723262,1724463066163,-500.0,0.00014246,2]
[335723263,1724463066173,-2024.93,0.00014246,2]
[335723264,1724463066183,-500.0,0.00014246,2]
[335723265,1724463066192,-500.0,0.00014246,2]
[335723266,1724463066201,-500.0,0.00014246,2]
[335723267,1724463066211,-581.92,0.00014246,2]
[335723268,1724463066220,-500.0,0.00014246,2]
[335723269,1724463066230,-500.0,0.00014246,2]
[335723270,1724463066241,-500.0,0.00014246,2]
[335723271,1724463066255,-500.0,0.00014246,2]
[335723272,1724463066265,-590.73,0.00014246,2]
[335723273,1724463066275,-3438.29,0.00014246,2]
[335723274,1724463066285,-500.0,0.00014246,2]
[335723275,1724463066295,-813.58,0.00014246,2]
[335723276,1724463066305,-500.0,0.00014246,2]
[335723277,1724463066315,-1249.91267693,0.00014246,2]
[335723278,1724463066690,-1879.96732307,0.00014246,2]
[335723279,1724463066700,-500.0,0.00014246,2]
[335723280,1724463066710,-500.0,0.00014246,2]
[335723281,1724463066720,-500.0,0.00014246,2]
[335723282,1724463066729,-503.93195172,0.00014246,2]
[335723283,1724463066739,-500.0,0.00014246,2]
[335723284,1724463066749,-500.0,0.00014246,2]
[335723285,1724463066758,-377.13452033,0.00014246,2]
[335723286,1724463066768,-960.23,0.00014246,2]
[335723287,1724463066777,-500.0,0.00014246,2]
[335723288,1724463066787,-500.0,0.00014246,2]
[335723289,1724463066797,-500.0,0.00014246,2]
[335723290,1724463066808,-500.0,0.00014246,2]
[335723291,1724463066818,-1147.06,0.00014246,2]
[335723292,1724463066832,-500.0,0.00014246,2]
[335723293,1724463066843,-500.0,0.00014246,2]
[335723294,1724463066856,-500.0,0.00014246,2]
[335723295,1724463066866,-151.0,0.00014246,2]
[335723296,1724463066875,-151.0,0.00014246,2]
[335723297,1724463066885,-151.0,0.00014246,2]
[335723298,1724463066894,-151.0,0.00014246,2]
[335723299,1724463066904,-151.0,0.00014246,2]
[335723300,1724463066913,-755.45,0.00014246,2]
[335723301,1724463066923,-641.21,0.00014246,2]
[335723302,1724463066934,-151.0,0.00014246,2]
[335723303,1724463066944,-234.997802,0.00014246,2]
[335723304,1724463066954,-500.0,0.00014246,2]
[335723305,1724463066964,-1039.26,0.00014246,2]
[335723306,1724463066974,-547.75,0.00014246,2]
[335723307,1724463066984,-500.0,0.00014246,2]
[335723308,1724463066994,-1134.95,0.00014246,2]
[335723309,1724463067003,-500.0,0.00014246,2]
[335723310,1724463067012,-665.86,0.00014246,2]
[335723311,1724463067022,-500.0,0.00014246,2]
[335723312,1724463067033,-1647.71,0.00014246,2]
[335723313,1724463067042,-500.0,0.00014246,2]
[335723314,1724463067052,-500.0,0.00014246,2]
[335723315,1724463067061,-500.0,0.00014246,2]
[335723316,1724463067072,-506.14764289,0.00014246,2]
[335723317,1724463067086,-500.0,0.00014246,2]
[335723318,1724463067095,-2011.22,0.00014246,2]
[335723319,1724463067105,-151.0,0.00014246,2]
[335723320,1724463067115,-500.0,0.00014246,2]
[335723321,1724463067125,-151.0,0.00014246,2]
[335723322,1724463067135,-151.0,0.00014246,2]
[335723323,1724463067145,-500.0,0.00014246,2]
[335723324,1724463067154,-151.0,0.00014246,2]
[335723325,1724463067164,-151.0,0.00014246,2]
[335723326,1724463067173,-966.87,0.00014246,2]
[335723327,1724463067183,-151.0,0.00014246,2]
[335723328,1724463067192,-500.0,0.00014246,2]
[335723329,1724463067202,-271.537767,0.00014246,2]
[335723330,1724463067211,-500.0,0.00014246,2]
[335723331,1724463067222,-500.0,0.00014246,2]
[335723332,1724463067232,-500.0,0.00014246,2]
[335723333,1724463067245,-500.0,0.00014246,2]
[335723334,1724463067255,-500.0,0.00014246,2]
[335723335,1724463067264,-716.14,0.00014246,2]
[335723336,1724463067276,-500.0,0.00014246,2]
[335723337,1724463067286,-500.0,0.00014246,2]
[335723338,1724463067295,-500.0,0.00014246,2]
[335723339,1724463067305,-500.0,0.00014246,2]
[335723340,1724463067315,-841.82,0.00014246,2]
[335723341,1724463067332,-684.87,0.00014246,2]
[335723342,1724463067342,-1275.25034,0.00014246,2]
[335723343,1724463067351,-1275.25034,0.00014246,2]
[335723344,1724463067360,-1275.25034,0.00014246,2]
[335723345,1724463067370,-500.0,0.00014246,2]
[335723346,1724463067379,-1275.25034,0.00014246,2]
[335723347,1724463067388,-1275.25034,0.00014246,2]
[335723348,1724463067397,-692.727266,0.00014246,2]
[335723349,1724463067407,-692.727266,0.00014246,2]
[335723350,1724463067417,-692.727266,0.00014246,2]
[335723351,1724463067427,-692.727266,0.00014246,2]
[335723352,1724463067436,-500.0,0.00014246,2]
[335723353,1724463067446,-692.727266,0.00014246,2]
[335723354,1724463067455,-1275.25034,0.00014246,2]
[335723355,1724463067465,-1275.25034,0.00014246,2]
[335723356,1724463067475,-1275.25034,0.00014246,2]
[335723357,1724463067484,-1275.25034,0.00014246,2]
[335723358,1724463067494,-1275.250342,0.00014246,2]
[335723359,1724463067503,-692.727266,0.00014246,2]
[335723360,1724463067513,-692.727266,0.00014246,2]
[335723361,1724463067522,-692.727266,0.00014246,2]
[335723362,1724463067531,-692.727266,0.00014246,2]
[335723363,1724463067541,-692.727268,0.00014246,2]
[335723364,1724463067550,-3160.63,0.00014246,2]
[335723365,1724463067559,-500.0,0.00014246,2]
[335723366,1724463067569,-568.53,0.00014246,2]
[335723367,1724463067579,-555.38,0.00014246,2]
[335723368,1724463067590,-500.0,0.00014246,2]
[335723369,1724463067599,-500.0,0.00014246,2]
[335723370,1724463067609,-500.0,0.00014246,2]
[335723371,1724463067618,-664.29,0.00014246,2]
[335723372,1724463067627,-1034.54,0.00014246,2]
[335723373,1724463067637,-610.58,0.00014246,2]
[335723374,1724463067647,-500.0,0.00014246,2]
[335723375,1724463067656,-551.39,0.00014246,2]
[335723376,1724463067665,-500.0,0.00014246,2]
[335723377,1724463067675,-500.0,0.00014246,2]
[335723378,1724463067685,-952.07,0.00014246,2]
[335723379,1724463067695,-500.0,0.00014246,2]
[335723380,1724463067704,-774.25,0.00014246,2]
[335723381,1724463067714,-763.26,0.00014246,2]
[335723382,1724463067723,-506.45474192,0.00014246,2]
[335723383,1724463067733,-500.0,0.00014246,2]
[335723384,1724463067742,-1245.76,0.00014246,2]
[335723385,1724463067752,-500.0,0.00014246,2]
[335723386,1724463067761,-500.0,0.00014246,2]
[335723387,1724463067770,-718.17,0.00014246,2]
[335723388,1724463067779,-500.0,0.00014246,2]
[335723389,1724463067789,-500.0,0.00014246,2]
[335723390,1724463067798,-500.0,0.00014246,2]
[335723391,1724463067807,-605.09,0.00014246,2]
[335723392,1724463067816,-634.53,0.00014246,2]
[335723393,1724463067826,-500.0,0.00014246,2]
[335723394,1724463067836,-500.0,0.00014246,2]
[335723395,1724463067846,-691.08,0.00014246,2]
[335723396,1724463067855,-1125.88,0.00014246,2]
[335723397,1724463067865,-500.0,0.00014246,2]
[335723398,1724463067875,-839.36,0.00014246,2]
[335723399,1724463067884,-560.7,0.00014246,2]
[335723400,1724463067893,-557.11,0.00014246,2]
[335723401,1724463067905,-500.0,0.00014246,2]
[335723402,1724463067914,-860.49,0.00014246,2]
[335723403,1724463067923,-422.137826,0.00014246,2]
[335723404,1724463067933,-520.18102788,0.00014246,2]
[335723405,1724463067942,-422.137826,0.00014246,2]
[335723406,1724463067951,-406.33918069,0.00014246,2]
[335723412,1724463221107,584.38,0.00027,120]
[335723413,1724463236388,547.07488891,0.00027,120]
[335723418,1724463304879,150.0,0.00027,120]
[335723419,1724463310710,2081.61,0.00025,60]
[335723422,1724463387133,433.85,0.00027,120]
[335723431,1724463640952,24900.0,0.00011753,2]
[335723450,1724463828168,10000.0,0.0001211,2]
[335723461,1724463945949,10000.0,0.0001211,2]
[335723464,1724463996114,-201.59731424,0.00012116,2]
[335723466,1724464017935,1298.0536854,0.00011881,2]
[335723467,1724464025120,-61.79713666,0.00012116,2]
[335723468,1724464025141,-192.0965735,0.0001221,2]
[335723469,1724464025164,-86.91143188,0.00012237,2]
[335723470,1724464035140,-102.71350102,0.00012237,2]
[335723471,1724464035164,-250.84896336,0.00012551,2]
[335723474,1724464048131,-379.35118751,0.00012551,2]
[335723476,1724464071892,10000.0,0.0001211,2]
[335723483,1724464148129,-193.94675007,0.00012356,2]
[335723491,1724464172115,-1572.64324129,0.00012356,2]
[335723494,1724464183024,251.35629272,0.00012163,2]
[335723495,1724464183049,150.47002444,0.00012163,2]
[335723496,1724464183072,159.0442931,0.00012163,2]
[335723497,1724464183095,230.15906718,0.00012163,2]
[335723498,1724464183315,245.0,0.00012163,2]
[335723555,1724464232574,-1187.91091937,0.00012163,2]
[335724157,1724464238518,-5757.99205772,0.00012163,2]
[335724159,1724464238528,-7981.93265453,0.00012163,2]
[335724161,1724464238538,-2719.18126083,0.00012551,2]
[335724163,1724464238547,-8865.42864472,0.00012551,2]
[335724165,1724464238558,-1194.06414847,0.00012629,2]
[335724167,1724464238568,-811.79481334,0.00012629,2]
[335724169,1724464238577,-404.63763456,0.00012629,2]
[335724171,1724464238587,-300.0,0.00012778,2]
[335724173,1724464238597,-300.0,0.00012778,2]
[335724175,1724464238607,-988.31686704,0.00012779,2]
[335724178,1724464238623,-305.36295541,0.00012782,2]
[335724180,1724464238632,-155.18251291,0.00012886,2]
[335724182,1724464238642,-521.76218327,0.00012898,2]
[335724184,1724464238652,-269.40565816,0.00012898,2]
[335724186,1724464238663,-157.10922662,0.00012898,2]
[335724188,1724464238674,-182.43031359,0.00012934,2]
[335724190,1724464238683,-288.43492116,0.00012971,2]
[335724192,1724464238694,-154.98999633,0.00012971,2]
[335724195,1724464238705,-166.45158987,0.00012971,2]